[Event "Bangabandhu Premier Div League 2023-24"]
[Site "Dhaka"]
[Date "2024.02.06"]
[Round "6.3"]
[White "Ter-Sahakyan, Samvel"]
[Black "Chigaev, Maksim"]
[Result "1/2-1/2"]
[ECO "C89"]
[WhiteElo "2649"]
[BlackElo "2622"]
[Annotator "TA"]
[PlyCount "78"]
[EventDate "2024.02.01"]
[EventCountry "BAN"]
[SourceTitle "playchess.com"]
[Source "ChessBase"]
[SourceQuality "1"]
[TimeControl "40/5400+30:1800+30"]

{[%evp 26,78,28,26,38,14,15,22,20,14,17,10,14,0,8,0,8,0,35,0,0,0,0,0,0,0,0,0,0,0,0,0,0,0,0,6,10,0,0,0,0,0,0,0,0,0,0,0,0,0,0,0,0,0,0]} 1. e4 {[%emt 0:00:04]} e5 {[%emt 0:00:06]} 2. Nf3 {[%emt 0:00:11]} Nc6 {[%emt 0:00:05]} 3. Bb5 {[%emt 0:00:28]} a6 {[%emt 0:00:09]} 4. Ba4 {[%emt 0:00:03]} Nf6 {[%emt 0:00:08]} 5. O-O {[%emt 0:00:08]} Be7 {[%emt 0:00:04]} 6. Re1 {[%emt 0:01:45]} b5 {[%emt 0:00:08]} 7. Bb3 {[%emt 0:00:04]} O-O {[%emt 0:00:08]} 8. c3 {[%emt 0:00:16]} d5 {[%emt 0:00:21]} 9. exd5 {[%emt 0:02:08]} Nxd5 {[%emt 0:00:08]} 10. Nxe5 {[%emt 0:00:57]} Nxe5 {[%emt 0:00:07]} 11. Rxe5 {[%emt 0:00:04]} c6 {[%emt 0:00:07]} 12. d3 {[%emt 0:00:34]} Bd6 {[%emt 0:00:08]} 13. Re1 {[%emt 0:00:14]} Bf5 {[%emt 0:00:07]} 14. Qf3 {[%emt 0:00:50][%csl LRd5,LRf5]} Bg6 {[%emt 0:00:07]} 15. Na3 {[%emt 0:04:18]} Bxa3 {[%emt 0:00:13]} 16. bxa3 {[%emt 0:00:04]} Nxc3 {[%emt 0:00:11]} 17. Bd2 {[%emt 0:00:46]} Nd5 {[%emt 0:00:36]} 18. a4 {[%emt 1:26:36]} Qd7 {[%emt 1:36:37]} 19. Rac1 {[%emt 0:00:30]} Rfe8 {[%emt 0:00:00]} 20. h3 {[%emt 0:00:00]} Rxe1+ {[%emt 0:00:00]} 21. Rxe1 {[%emt 0:01:00]} Re8 {[%emt 0:01:30]} 22. Rc1 {[%emt 0:00:30]} h6 {[%emt 0:00:30] The position is equal.} 23. axb5 {[%emt 0:00:00]} axb5 {[%emt 0:00:00]} 24. a4 {[%emt 0:00:00]} bxa4 {[%emt 0:00:00]} 25. Bxa4 {[%emt 0:01:30] This pair of bishops is nice.} Re6 {[%emt 0:01:30]} 26. Bb3 {[%emt 0:00:30]} Qb7 {[%emt 0:00:30]} 27. Bc4 {[%emt 0:00:30]} Re8 {[%emt 0:00:30]} 28. Qd1 {[%emt 0:00:30]} Qd7 {[%emt 0:00:00]} 29. Qg4 {[%emt 0:00:00]} Qxg4 {[%emt 0:00:00]} 30. hxg4 {[%emt 0:01:00]} Ra8 {[%emt 0:01:30]} 31. f3 {[%emt 0:00:00]} Nb6 {[%emt 0:00:30]} 32. Bb3 {[%emt 0:00:00]} Ra3 $1 {[%emt 0:00:00]} 33. Rc3 {[%emt 0:00:00][%cal Ob3f7] [#] Strongly threatening Bxf7+!} Nd5 {[%emt 0:00:00]} 34. Bxd5 {[%emt 0:00:00]} Rxc3 {[%emt 0:00:00]} 35. Bxf7+ {[%emt 0:00:00]} Kxf7 {[%emt 0:00:00]} 36. Bxc3 {[%emt 0:00:00]} Bxd3 $11 {[%emt 0:00:00] KB-KB} 37. Kf2 {[%emt 0:03:30]} c5 {[%emt 0:00:00]} 38. Ke3 $1 {[%emt 0:00:00]} Bf1 {[%emt 0:00:00]} 39. Kf2 {[%emt 0:00:00]} Bd3 {[%emt 0:00:00] An even fight not without its subleties.   Weighted Error Value: White=0.05 (flawless) /Black=0.03 (flawless) .  Inaccurate:     	White=1     	Black=1      OK:         	White=10    	Black=13     Strong:       	White=1     	Black=1} 1/2-1/2

[Event "Bangabandhu Premier Div League 2023-24"]
[Site "Dhaka"]
[Date "2024.02.06"]
[Round "6.3"]
[White "Arpan Das"]
[Black "Hasan, Sk. Rashedul"]
[Result "1-0"]
[ECO "B34"]
[WhiteElo "2367"]
[BlackElo "1807"]
[Annotator "TA"]
[PlyCount "67"]
[EventDate "2024.02.01"]
[EventCountry "BAN"]
[SourceTitle "playchess.com"]
[Source "ChessBase"]
[SourceQuality "1"]
[TimeControl "40/5400+30:1800+30"]

{[%evp 18,67,100,91,146,151,166,91,83,73,115,112,125,129,393,385,379,370,367,222,207,132,166,136,260,247,274,260,303,279,507,526,529,532,608,566,570,550,667,501,855,734,1164,1134,1431,1414,1472,1428,29986,29987,29997,29998]} 1. e4 {[%emt 0:01:48]} c5 {[%emt 0:00:19]} 2. Nf3 {[%emt 0:00:20]} g6 {[%emt 0:00:46]} 3. d4 {[%emt 0:00:06]} cxd4 {[%emt 0:00:02]} 4. Nxd4 {[%emt 0:00:05]} Nf6 {[%emt 0:00:09]} 5. Nc3 {[%emt 0:00:06]} Nc6 {[%emt 0:00:08]} 6. Nxc6 {[%emt 0:00:04]} bxc6 {[%emt 0:00:11]} 7. e5 {[%emt 0:00:06]} Ng8 {[%emt 0:00:13]} 8. Bc4 {[%emt 0:00:07]} Bg7 {[%emt 0:00:18]} 9. Qf3 {[%emt 0:00:11]} e6 {[%emt 0:00:29]} 10. Bf4 {[%emt 0:00:26]} Qa5 {[%emt 0:00:45]} (10... Qc7 $142) 11. O-O-O $16 {[%emt 0:00:49] Threatens to win with Ne4.} Bxe5 {[%emt 0:05:30]} 12. Bxe5 {[%emt 0:00:06]} ({White should try} 12. Ne4 $18 {And now Bxe5 would win.} Kf8 13. Nd6) 12... Qxe5 {[%emt 0:00:04] White is better.} 13. Rhe1 {[%emt 0:01:20]} Qg5+ {[%emt 0:26:32]} 14. Kb1 {[%emt 0:00:03][%mdl 1024] aiming for Ne4. White has strong compensation. White has more active pieces.} Nf6 {[%emt 0:00:13] [#]} 15. Rd4 $1 {[%emt 0:02:01]} Nh5 $2 {[%emt 0:19:37][%mdl 8192] A mistake that costs the game.} (15... Ke7 $16 {might work better.}) 16. Ne4 $18 {[%emt 0:16:40]} Qe7 {[%emt 0:00:53]} 17. Nd6+ {[%emt 0:05:14]} Kf8 {[%emt 0:00:32]} 18. Qe3 {[%emt 0:05:57] g4 is the strong threat.} h6 {[%emt 0:18:00]} 19. g4 {[%emt 0:00:57]} Nf6 {[%emt 0:02:27]} 20. Qe5 $36 {[%emt 0:01:08][%mdl 2048] Strongly threatening Rf4. Keeping Black busy.} Rh7 {[%emt 0:02:42]} (20... Kg8 $16 21. h3 Ne8) 21. Rf4 {[%emt 0:02:58]} Ng8 {[%emt 0:01:17]} 22. Qd4 {[%emt 0:10:30] Black is weak on the light squares} a5 {[%emt 0:05:19]} 23. Bd3 {[%emt 0:00:53][%cal Bc4d3,Bd3g6,Bg6h5][%mdl 32]} f6 $2 {[%emt 0:12:46]} (23... Rg7 24. a3 Ba6) 24. Bxg6 {[%emt 0:00:43]} Rg7 {[%emt 0:00:27]} 25. Bh5 {[%emt 0:00:52]} Rg5 {[%emt 0:00:43]} 26. c4 {[%emt 0:06:05] Prevents Rd5.} Ba6 {[%emt 0:02:22]} 27. h4 {[%emt 0:00:45]} c5 {[%emt 0:00:43]} 28. Qd2 {[%emt 0:01:39]} Rg7 {[%emt 0:00:28]} (28... Rd5 $142 29. cxd5 Qxd6) 29. Rf3 {[%emt 0:02:16]} Rb8 {[%emt 0:00:14]} 30. Nf5 {[%emt 0:01:39]} Qd8 {[%emt 0:00:31]} 31. Qd6+ {[%emt 0:00:16]} Ne7 {[%emt 0:00:46]} 32. Nxg7 {[%emt 0:01:05]} Kxg7 {[%emt 0:00:31] [#]} 33. Rxf6 $3 {[%emt 0:00:03][%mdl 512]} Qb6 {[%emt 0:00:20]} (33... Nd5 34. Rf7+) 34. Qxe7+ {[%emt 0:00:05] Weighted Error Value: White=0.30/Black=0.85.  Loses game:     	---       	Black=1      Mistake:       	White=1     	Black=3      Inaccurate:     	White=2     	Black=2      OK:         	White=6     	Black=5      Best:        	White=4     	Black=1      Strong:       	White=1     	---} 1-0

[Event "Bangabandhu Premier Div League 2023-24"]
[Site "Dhaka"]
[Date "2024.02.06"]
[Round "6.4"]
[White "Iniyan, Pa"]
[Black "Rahman, Ziaur"]
[Result "1/2-1/2"]
[ECO "D31"]
[WhiteElo "2515"]
[BlackElo "2428"]
[Annotator "TA"]
[PlyCount "75"]
[EventDate "2024.02.01"]
[EventCountry "BAN"]
[SourceTitle "playchess.com"]
[Source "ChessBase"]
[SourceQuality "1"]
[TimeControl "40/5400+30:1800+30"]

{[%evp 24,75,20,18,25,25,52,49,30,30,54,23,52,0,0,-62,-63,-97,-27,-28,-22,-18,-17,-8,-13,-17,-24,-28,-56,-196,-186,-190,-200,-301,-310,-328,-325,-295,-275,-734,-170,-137,0,0,0,0,0,0,0,0,0,0,0,0]} 1. d4 {[%emt 0:00:31]} d5 {[%emt 0:00:26]} 2. c4 {[%emt 0:00:09]} e6 {[%emt 0:00:07]} 3. Nc3 {[%emt 0:00:07]} c6 {[%emt 0:00:38]} 4. Nf3 {[%emt 0:00:08]} dxc4 {[%emt 0:00:35]} 5. a4 {[%emt 0:00:08]} Bb4 {[%emt 0:00:30]} 6. e3 {[%emt 0:00:16]} b5 {[%emt 0:00:07]} 7. Bd2 {[%emt 0:00:29]} a5 {[%emt 0:00:23]} 8. axb5 {[%emt 0:00:13]} Bxc3 {[%emt 0:00:05]} 9. Bxc3 {[%emt 0:00:09]} cxb5 {[%emt 0:00:05][%cal Bc6b5,Bb5b4][%mdl 32]} 10. b3 {[%emt 0:00:09]} Bb7 {[%emt 0:00:05]} 11. bxc4 {[%emt 0:00:08]} b4 {[%emt 0:00:03]} 12. Bb2 {[%emt 0:00:09]} Nf6 {[%emt 0:00:33]} 13. Bd3 {[%emt 0:00:07]} O-O {[%emt 0:00:13]} 14. O-O {[%emt 0:00:05]} Be4 {[%emt 0:00:59]} 15. Bxe4 {[%emt 0:09:19]} Nxe4 {[%emt 0:00:07] White is slightly better.} 16. Qc2 {[%emt 0:01:19]} f5 {[%emt 1:33:34]} 17. d5 {[%emt 0:09:42]} Qe7 {[%emt 0:00:00][%cal Oa5a4]} 18. Rfd1 {[%emt 1:16:22]} ({White should try} 18. Nd4 $14 Nc5 19. dxe6) 18... a4 $11 {[%emt 0:01:00]} 19. dxe6 {[%emt 0:00:30]} (19. Ne5 $11) 19... a3 $1 $15 {[%emt 0:00:30]} (19... b3 $6 20. Qd3 $14) 20. Nd4 {[%emt 0:00:30] Prevents Nc6} Na6 {[%emt 0:00:00]} (20... axb2 $2 21. Rxa8 Nc3 22. Re1 $18 (22. Nxf5 Qxe6 23. Re1 Nc6 $14)) (20... Ra6 $1 $17 21. f3 (21. Nxf5 $2 Qxe6 22. Bxa3 Rxa3 $19) 21... Nc5 (21... axb2 22. Rxa6 Nc3 23. Ra8 $11)) 21. Bc1 $1 $11 {[%emt 0:00:30]} Nac5 $36 {[%emt 0:01:00][%mdl 2048] Black has some pressure.} 22. f3 $1 {[%emt 0:00:30]} Nc3 {[%emt 0:00:00]} 23. Re1 {[%emt 0:00:30][%cal Oc1a3]} Nxe6 {[%emt 0:01:00] A dynamic duo of knights.} 24. Bd2 {[%emt 0:00:30]} Nxd4 {[%emt 0:00:00]} 25. exd4 {[%emt 0:00:30]} Ne2+ {[%emt 0:01:00]} 26. Kf1 {[%emt 0:00:00]} ({White must play} 26. Kh1 $15) 26... Nxd4 $19 {[%emt 0:00:00]} 27. Qd3 {[%emt 0:01:00]} Qd6 {[%emt 0:01:00][%cal Ob4b3] Threatens to win with ...b3!} 28. Reb1 {[%emt 0:00:30]} (28. Bxb4 $142 Qxb4 29. Qxd4) 28... Rfd8 {[%emt 0:00:30]} 29. Bxb4 {[%emt 0:00:00]} Qxh2 {[%emt 0:00:30]} 30. Be7 {[%emt 0:01:00] [#]} Rd7 {[%emt 0:00:30][%cal Oa8e8] White must now prevent ...Re8!} (30... a2 31. Re1 Rd7 32. Bc5 $17) 31. Re1 $2 {[%emt 0:00:30]} (31. c5 Rxe7 (31... a2 32. Qc4+ Kh8 33. Rxa2 $15) 32. Qxd4) 31... Re8 $2 {[%emt 0:00:30]} (31... a2 32. Bc5 $17) (31... Rb8 {( -> ...Rb2)} 32. Bb4 Rxb4 33. Qxa3 Nxf3 (33... Rxc4 34. Qa8+ Kf7 35. Qe8+ Kf6 36. Qxd7 $11) 34. gxf3 Qh1+ (34... Rxc4 35. Qa8+ Kf7 36. Qe8+ Kf6 37. Re6+ Kg5 38. Qxd7 $11) 35. Kf2 Rb2+ 36. Qxb2 Qh2+ 37. Kf1 Qxb2) 32. Bc5 {[%emt 0:00:30] [#]} Rxe1+ {[%emt 0:00:00]} (32... Red8 $1 $17 {[%cal Od4b3] ...Nb3! is the strong threat.} 33. Bb6 Ne6) 33. Rxe1 $11 {[%emt 0:00:00] The position is equal.} a2 {[%emt 0:00:00]} 34. Qe3 $1 {[%emt 0:00:00][%cal Re3e8]} Qh1+ {[%emt 0:00:00]} 35. Kf2 {[%emt 0:00:00][%cal Re3e8]} Qh4+ $1 {[%emt 0:00:00]} (35... a1=R 36. Qe8#) 36. Kf1 {[%emt 0:02:00][%cal Re3e8] Chess con chili.} (36. g3 $5 Qh2+ $8 37. Kf1 $11) 36... Qh1+ {[%emt 0:00:00]} (36... h6 $5 37. Qe8+ $8 Kh7 38. Qxd7 Qxe1+ 39. Kxe1 a1=Q+ (39... a1=B 40. Bxd4 Bxd4 41. Qxd4 Kh8 42. c5 Kh7 43. c6 Kg8 44. c7) 40. Kf2 Qb2+ 41. Kg1 Ne2+ 42. Kf1 Ng3+ 43. Kg1 Qc1+ 44. Kh2 Nf1+ (44... Qxc4 45. Bd4 $11) 45. Kh3 Qg5 $11 (45... Qxc4 46. Bd4 $16)) 37. Kf2 {[%emt 0:00:00][%cal Re3e8]} Qh4+ $1 {[%emt 0:00:00]} ({Not} 37... a1=R 38. Qe8#) 38. Kf1 {[%emt 0:00:00] White happily takes the draw.   Weighted Error Value: White=0.40/Black=0.32.  Mistake:       	White=5     	Black=2      Inaccurate:     	White=1     	Black=2      OK:         	White=8     	Black=8      Best:        	White=3     	Black=4      Strong:       	White=3     	Black=3} 1/2-1/2

[Event "Bangabandhu Premier Div League 2023-24"]
[Site "Dhaka"]
[Date "2024.02.06"]
[Round "6.4"]
[White "Mihir Lal, Das"]
[Black "Avik, Sarker"]
[Result "0-1"]
[ECO "D73"]
[WhiteElo "1936"]
[BlackElo "1914"]
[Annotator "NA RC"]
[PlyCount "40"]
[EventDate "2024.02.01"]
[EventCountry "BAN"]
[SourceTitle "playchess.com"]
[Source "ChessBase"]
[SourceQuality "1"]
[TimeControl "40/5400+30:1800+30"]

1. Nf3 {[%emt 0:00:30]} d5 {[%emt 0:01:16]} 2. g3 {[%emt 0:00:00]} g6 {[%emt 0:01:22]} 3. Bg2 {[%emt 0:00:00]} Bg7 {[%emt 0:00:07]} 4. O-O {[%emt 0:00:00]} c6 {[%emt 0:00:24]} 5. d4 {[%emt 0:00:47]} Nf6 {[%emt 0:00:38]} 6. c4 {[%emt 0:00:33]} dxc4 {[%emt 0:00:37]} 7. Ne5 {[%emt 0:00:12]} Ng4 {[%emt 0:03:10]} 8. f4 {[%emt 0:07:36]} O-O {[%emt 0:03:24]} 9. Na3 {[%emt 0:02:13]} Nxe5 {[%emt 0:05:16]} 10. fxe5 {[%emt 0:01:24]} f6 {[%emt 0:02:27]} 11. Nxc4 {[%emt 0:02:40]} Be6 {[%emt 0:04:53]} 12. Qd3 {[%emt 0:05:54]} b5 {[%emt 0:04:10]} 13. exf6 {[%emt 0:06:24]} Bxc4 {[%emt 0:02:29]} 14. Qd2 {[%emt 0:08:41]} Bxf6 {[%emt 0:01:11]} 15. Rd1 {[%emt 0:00:05]} e5 {[%emt 0:05:28]} 16. b3 {[%emt 0:00:31]} Bf7 {[%emt 0:01:37]} 17. e3 {[%emt 0:00:52]} exd4 {[%emt 0:01:06]} 18. exd4 {[%emt 0:00:03]} Bd5 {[%emt 0:00:29]} 19. Ba3 {[%emt 0:01:19]} Re8 {[%emt 0:00:53]} 20. Bh3 {[%emt 0:00:36]} Bg5 {[%emt 0:02:02]} 0-1

[Event "Bangabandhu Premier Div League 2023-24"]
[Site "Dhaka"]
[Date "2024.02.06"]
[Round "6.5"]
[White "Kushagra Mohan"]
[Black "Alekhya Mukhopadhyay"]
[Result "1-0"]
[ECO "B48"]
[WhiteElo "2374"]
[BlackElo "2184"]
[Annotator "RC"]
[PlyCount "65"]
[EventDate "2024.02.01"]
[EventCountry "BAN"]
[SourceTitle "playchess.com"]
[Source "ChessBase"]
[SourceQuality "1"]
[TimeControl "40/5400+30:1800+30"]

1. e4 {[%emt 0:00:02]} c5 {[%emt 0:00:10]} 2. Nf3 {[%emt 0:00:04]} e6 {[%emt 0:00:06]} 3. d4 {[%emt 0:00:02]} cxd4 {[%emt 0:00:05]} 4. Nxd4 {[%emt 0:00:02]} Nc6 {[%emt 0:00:08]} 5. Nc3 {[%emt 0:00:04]} Qc7 {[%emt 0:00:08]} 6. Be3 {[%emt 0:00:04]} a6 {[%emt 0:00:08]} 7. Qf3 {[%emt 0:00:03]} Ne5 {[%emt 0:00:27]} 8. Qg3 {[%emt 0:00:16]} b5 {[%emt 0:00:08]} 9. O-O-O {[%emt 0:01:22]} Nf6 {[%emt 0:00:38]} 10. f4 {[%emt 0:00:58]} Neg4 {[%emt 0:01:30]} 11. Bd2 {[%emt 0:00:05]} h5 {[%emt 0:07:02]} 12. e5 {[%emt 0:06:50]} b4 {[%emt 0:03:09]} 13. exf6 {[%emt 0:00:18]} bxc3 {[%emt 0:00:15]} 14. Bxc3 {[%emt 0:00:12]} Nxf6 {[%emt 0:15:10]} 15. Bd3 {[%emt 0:00:18]} Bb7 {[%emt 0:01:18]} 16. Rhe1 {[%emt 0:08:39]} h4 {[%emt 0:02:26]} 17. Qf2 {[%emt 0:02:32]} Bc5 {[%emt 0:01:44]} 18. Qd2 {[%emt 0:16:29]} Nd5 {[%emt 0:16:13]} 19. Nf5 {[%emt 0:03:13]} f6 {[%emt 0:01:08]} 20. Be4 {[%emt 0:08:17]} Nxc3 {[%emt 0:22:13]} 21. Nxg7+ {[%emt 0:06:52]} Ke7 {[%emt 0:15:44]} 22. Qxc3 {[%emt 0:00:49]} Bxe4 {[%emt 0:03:53]} 23. Rxe4 {[%emt 0:00:20]} Rac8 {[%emt 0:03:56]} 24. Qb3 {[%emt 0:10:49]} Kf7 {[%emt 0:04:14]} 25. Rxd7+ {[%emt 0:16:35]} Qxd7 {[%emt 0:00:02]} 26. Nxe6 {[%emt 0:00:02]} Kg6 {[%emt 0:01:35]} 27. f5+ {[%emt 0:00:49]} Kxf5 {[%emt 0:00:30]} 28. Qf3+ {[%emt 0:01:18]} Kg6 {[%emt 0:00:00]} 29. Qg4+ {[%emt 0:00:03]} Kh6 {[%emt 0:00:17]} 30. Qxh4+ {[%emt 0:00:05]} Kg6 {[%emt 0:00:06]} 31. Qg4+ {[%emt 0:00:04]} Kh6 {[%emt 0:00:38]} 32. Qh3+ {[%emt 0:00:07]} Kg6 {[%emt 0:00:07]} 33. Nf4+ {[%emt 0:00:07]} 1-0

[Event "Bangabandhu Premier Div League 2023-24"]
[Site "Dhaka"]
[Date "2024.02.06"]
[Round "6.5"]
[White "Mohammad Minhaz Uddin"]
[Black "Nasim Hossain, Bhuiyan"]
[Result "0-1"]
[ECO "C06"]
[WhiteElo "2224"]
[BlackElo "1812"]
[Annotator "TA"]
[PlyCount "84"]
[EventDate "2024.02.01"]
[EventCountry "BAN"]
[SourceTitle "playchess.com"]
[Source "ChessBase"]
[SourceQuality "1"]
[TimeControl "40/5400+30:1800+30"]

{[%evp 17,84,40,37,22,39,47,44,43,41,44,54,20,22,18,44,10,10,0,-4,-5,0,-3,-4,-23,-17,-31,0,0,0,0,2,-84,-75,-88,-76,-65,-69,-77,-74,-126,-129,-104,-151,-139,-132,-170,-183,-183,-170,-185,-184,-212,-183,-380,-363,-428,-407,-402,-420,-491,-459,-553,-424,-414,-410,-1255,-1259,-29995,-29996]} 1. e4 {[%emt 0:00:03]} e6 {[%emt 0:00:17]} 2. d4 {[%emt 0:00:05]} d5 {[%emt 0:00:12]} 3. Nd2 {[%emt 0:00:23]} Nf6 {[%emt 0:02:18]} 4. Bd3 {[%emt 0:00:28]} c5 {[%emt 0:02:44]} 5. e5 {[%emt 0:00:48]} Nfd7 {[%emt 0:00:12]} 6. c3 {[%emt 0:00:03]} Nc6 {[%emt 0:00:07]} 7. Ne2 {[%emt 0:00:07]} Be7 {[%emt 0:11:58][%cal Bf8e7,Be7f6,Bf6g7][%mdl 32]} 8. O-O {[%emt 0:01:42]} O-O {[%emt 0:00:34]} 9. f4 {[%emt 1:31:21]} f5 {[%emt 1:16:38]} 10. exf6 {[%emt 0:00:00]} Bxf6 {[%emt 0:00:00]} 11. Nf3 {[%emt 0:00:00]} Qb6 {[%emt 0:00:00]} 12. Kh1 {[%emt 0:00:00] White is slightly better.} cxd4 {[%emt 0:00:00]} 13. cxd4 {[%emt 0:00:00]} g6 {[%emt 0:00:00]} 14. Bb1 {[%emt 0:00:00]} Bg7 {[%emt 0:00:00]} 15. b3 {[%emt 0:00:00]} a5 {[%emt 0:00:00]} 16. a3 {[%emt 0:00:00]} Nf6 {[%emt 0:00:00]} 17. Ra2 {[%emt 0:00:00]} Bd7 {[%emt 0:00:00][%cal Bc8d7,Bd7b5,Bb5a6][%mdl 32]} 18. Be3 {[%emt 0:00:00]} Ne7 {[%emt 0:00:00][%cal Bc6e7,Be7f5,Bf5d6][%mdl 32]} 19. Ne5 {[%emt 0:05:00]} Bb5 {[%emt 0:00:00]} 20. a4 {[%emt 0:00:00]} Ba6 {[%emt 0:05:30]} 21. Rf3 {[%emt 0:01:00]} Nf5 {[%emt 0:00:00]} 22. Bg1 {[%emt 0:00:30]} Nd6 {[%emt 0:01:00]} 23. g4 {[%emt 0:00:00]} Qb4 {[%emt 0:00:00]} 24. h4 {[%emt 0:00:00]} (24. f5 $11 exf5 25. gxf5) 24... Nfe4 {[%emt 0:00:00]} 25. Bd3 {[%emt 0:00:00]} Rac8 {[%emt 0:00:00]} 26. Bxa6 {[%emt 0:00:00]} bxa6 {[%emt 0:00:00]} 27. Nd3 {[%emt 0:02:30] Black continues to play with concentration.} Qb6 {[%emt 0:02:30] Black has more active pieces.} 28. Nc5 {[%emt 0:00:30]} (28. Rb2 $142) 28... Qd8 $17 {[%emt 0:00:00]} 29. Qe1 {[%emt 0:00:00]} Nxc5 {[%emt 0:00:00]} 30. dxc5 {[%emt 0:00:00]} Ne4 {[%emt 0:00:00][%cal Oe6e5]} 31. Rc2 {[%emt 0:00:00] [#]} e5 $1 {[%emt 0:02:00] And now ...d4 would win.} 32. c6 {[%emt 0:02:00]} Rf6 {[%emt 0:00:30]} 33. c7 {[%emt 0:00:00] [#]} Qd7 {[%emt 0:00:00]} (33... Rxc7 34. Qxa5 Rff7 35. Rxc7 Rxc7 36. Qxa6) 34. Qxa5 {[%emt 0:01:00]} d4 {[%emt 0:01:00] Threatens to win with ...d3.} 35. Rc4 $2 {[%emt 0:00:30]} (35. Qxe5 $2 Re6 (35... Qxg4 $2 36. Qxe4 Rf7 37. Qd5 $18) 36. Qa5 d3 $19) (35. Rd3 $2 Rc6 36. Rc4 (36. Rxc6 $2 Qxc6 37. Kh2 Rxc7 $19) 36... R6xc7 (36... R8xc7 $2 37. fxe5 Rc5 38. Rdxd4 $19) 37. fxe5 Rxc4 38. bxc4 Qxg4 39. Qd5+ Kh8 40. Qxd4 Qxe2 $19) (35. g5 Re6 36. Rc4) 35... Rf7 $19 {[%emt 0:00:00]} (35... Qxg4 $2 36. Qd5+ Rf7 37. Qxe4 $18) 36. f5 {[%emt 0:00:30]} gxf5 {[%emt 0:00:00]} (36... Rxc7 $2 37. Rxc7 Qxc7 38. Qxa6 $19) 37. gxf5 {[%emt 0:00:30]} Nd6 {[%emt 0:00:00]} (37... Rxc7 $2 38. Qxc7 Qxc7 39. Rxc7 Rxc7 40. b4 $19) 38. Rc1 {[%emt 0:00:30]} Nxf5 {[%emt 0:02:00] ...d3 would now be deadly.} (38... Rxc7 39. Rxc7 Qxc7 40. Qxa6 $15) 39. Bh2 {[%emt 0:00:30]} Nxh4 {[%emt 0:00:00]} ({Worse is} 39... Rxc7 40. Qxc7 (40. Qxa6 Qd5 $19) 40... Qxc7 41. Rxc7 Rxc7 42. Bxe5 (42. Rxf5 $2 {loses.} d3 $19) 42... Bxe5 (42... Nxh4 43. Rg3 $11) 43. Rxf5 $11) 40. Rxf7 {[%emt 0:00:00]} Qxf7 {[%emt 0:00:00]} 41. Ng1 {[%emt 0:31:00] Against Qf3+} (41. Nxd4 $142 exd4 42. Qg5 Qf3+ 43. Kg1) 41... Qxb3 {[%emt 0:31:30] ( -> ...Qb7+)} 42. Bxe5 {[%emt 0:00:00]} Qb7+ {[%emt 0:00:30] Weighted Error Value: White=0.63/Black=0.09 (flawless) .  Mistake:       	White=4     	---        Inaccurate:     	White=3     	Black=2      OK:         	White=10    	Black=21     Best:        	---       	Black=2} 0-1